[Event "7th Paul Keres Memorial Festival 2026 Classic A"]
[Site "ESTONIA Resort Hotel & Spa conference center, EE"]
[Date "2026.07.31"]
[Round "8"]
[White "Laurusas, Tomas"]
[Black "Lagarde, Maxime"]
[Result "1/2-1/2"]
[Board "5"]
[TimeControl "5400+30"]
[WhiteFideId "12803731"]
[BlackFideId "662399"]
[WhiteElo "2511"]
[BlackElo "2622"]
[WhiteTitle "GM"]
[BlackTitle "GM"]
[WhiteClock "1:11:02"]
[BlackClock "1:11:01"]
[Variant "Standard"]
[EndDate "2026.07.31"]
[EndTime "14:20:51"]

1. d4 {[%clk 1:30:58]}  Nf6 {[%clk 1:25:52]} 2. c4 {[%clk 1:31:25]}  e6 {[%clk 1:26:19]} 3. Nf3 {[%clk 1:31:48]}  b6 {[%clk 1:26:45]}
4. g3 {[%clk 1:31:55]}  Bb4+ {[%clk 1:27:10]} 5. Bd2 {[%clk 1:32:19]}  Bxd2+ {[%clk 1:27:25]} 6. Qxd2 {[%clk 1:32:08]}  Ba6 {[%clk 1:27:45]}
7. b3 {[%clk 1:31:51]}  O-O {[%clk 1:28:09]} 8. Bg2 {[%clk 1:32:07]}  d5 {[%clk 1:28:34]} 9. O-O {[%clk 1:28:18]}  c5 {[%clk 1:28:55]}
10. Nc3 {[%clk 1:23:52]}  Nc6 {[%clk 1:29:18]} 11. Rfd1 {[%clk 1:19:36]}  dxc4 {[%clk 1:15:46]} 12. dxc5 {[%clk 1:11:02]}  bxc5 {[%clk 1:11:01]} 1/2-1/2

[Event "7th Paul Keres Memorial Festival 2026 Classic A"]
[Site "ESTONIA Resort Hotel & Spa conference center, EE"]
[Date "2026.07.31"]
[Round "8"]
[White "Keinanen, Anastasia"]
[Black "Harikrishnan.A.Ra"]
[Result "1/2-1/2"]
[Board "6"]
[TimeControl "5400+30"]
[WhiteFideId "34101737"]
[BlackFideId "5081483"]
[WhiteElo "2259"]
[BlackElo "2519"]
[WhiteTitle "WIM"]
[BlackTitle "GM"]
[WhiteClock "0:12:14"]
[BlackClock "0:45:11"]
[Variant "Standard"]
[EndDate "2026.07.31"]
[EndTime "15:58:33"]

1. e4 {[%clk 1:30:53]}  e6 {[%clk 1:30:28]} 2. d4 {[%clk 1:30:41]}  d5 {[%clk 1:30:51]} 3. Nd2 {[%clk 1:31:02]}  c5 {[%clk 1:31:16]}
4. exd5 {[%clk 1:30:55]}  Qxd5 {[%clk 1:31:40]} 5. Ngf3 {[%clk 1:31:22]}  cxd4 {[%clk 1:32:04]} 6. Bc4 {[%clk 1:31:48]}  Qd7 {[%clk 1:32:29]}
7. O-O {[%clk 1:31:20]}  Nc6 {[%clk 1:32:56]} 8. Nb3 {[%clk 1:31:40]}  a6 {[%clk 1:33:21]} 9. Nbxd4 {[%clk 1:31:48]}  Nxd4 {[%clk 1:33:45]}
10. Qxd4 {[%clk 1:31:47]}  Qxd4 {[%clk 1:34:09]} 11. Nxd4 {[%clk 1:32:10]}  Bd7 {[%clk 1:34:22]} 12. a4 {[%clk 1:30:28]}  Rc8 {[%clk 1:34:42]}
13. Bb3 {[%clk 1:25:20]}  Bc5 {[%clk 1:33:45]} 14. Rd1 {[%clk 1:15:38]}  Nf6 {[%clk 1:33:32]} 15. c3 {[%clk 1:10:23]}  Ke7 {[%clk 1:31:15]}
16. h3 {[%clk 1:09:35]}  Rhd8 {[%clk 1:28:49]} 17. Be3 {[%clk 1:08:29]}  Be8 {[%clk 1:23:41]} 18. Nc2 {[%clk 1:00:48]}  Ne4 {[%clk 1:23:30]}
19. Nd4 {[%clk 0:41:51]}  e5 {[%clk 1:13:29]} 20. Nf5+ {[%clk 0:33:11]}  Kf6 {[%clk 1:04:27]} 21. Bc2 {[%clk 0:33:11]}  Bc6 {[%clk 0:59:15]}
22. Bxe4 {[%clk 0:17:50]}  Rxd1+ {[%clk 0:57:50]} 23. Rxd1 {[%clk 0:18:17]}  Bxe4 {[%clk 0:57:49]} 24. Rd6+ {[%clk 0:18:07]}  Bxd6 {[%clk 0:58:02]}
25. Nxd6 {[%clk 0:18:32]}  Bf5 {[%clk 0:48:36]} 26. Nxc8 {[%clk 0:18:58]}  Bxc8 {[%clk 0:49:02]} 27. f4 {[%clk 0:14:27]}  exf4 {[%clk 0:47:59]}
28. Bxf4 {[%clk 0:14:52]}  Kf5 {[%clk 0:47:26]} 29. Be3 {[%clk 0:15:07]}  Ke4 {[%clk 0:47:07]} 30. Bd4 {[%clk 0:15:33]}  g6 {[%clk 0:47:28]}
31. Bf6 {[%clk 0:14:01]}  Ke3 {[%clk 0:46:09]} 32. a5 {[%clk 0:13:54]}  Be6 {[%clk 0:46:17]} 33. b4 {[%clk 0:14:09]}  Ke2 {[%clk 0:46:23]}
34. h4 {[%clk 0:12:49]}  Ke3 {[%clk 0:46:12]} 35. g3 {[%clk 0:11:32]}  Kf3 {[%clk 0:46:35]} 36. Kh2 {[%clk 0:12:00]}  Bd5 {[%clk 0:46:38]}
37. Bg7 {[%clk 0:11:36]}  Kg4 {[%clk 0:46:58]} 38. Bf6 {[%clk 0:11:52]}  h6 {[%clk 0:46:41]} 39. Bg7 {[%clk 0:12:14]}  h5 {[%clk 0:45:11]} 1/2-1/2

[Event "7th Paul Keres Memorial Festival 2026 Classic A"]
[Site "ESTONIA Resort Hotel & Spa conference center, EE"]
[Date "2026.07.31"]
[Round "8"]
[White "Jakubowski, Krzysztof"]
[Black "Haitin, Ilja"]
[Result "1-0"]
[Board "7"]
[TimeControl "5400+30"]
[WhiteFideId "1112848"]
[BlackFideId "4501764"]
[WhiteElo "2424"]
[BlackElo "2273"]
[WhiteTitle "GM"]
[BlackTitle "FM"]
[WhiteClock "0:12:28"]
[BlackClock "0:01:31"]
[Variant "Standard"]
[EndDate "2026.07.31"]
[EndTime "16:41:00"]

1. e4 {[%clk 1:30:58]}  e5 {[%clk 1:26:08]} 2. Nf3 {[%clk 1:31:19]}  Nf6 {[%clk 1:26:36]} 3. Nxe5 {[%clk 1:31:40]}  d6 {[%clk 1:27:04]}
4. Nf3 {[%clk 1:32:02]}  Nxe4 {[%clk 1:27:31]} 5. Nc3 {[%clk 1:32:25]}  Nxc3 {[%clk 1:27:58]} 6. dxc3 {[%clk 1:32:49]}  Be7 {[%clk 1:28:23]}
7. Bf4 {[%clk 1:33:12]}  O-O {[%clk 1:27:36]} 8. Qd2 {[%clk 1:33:17]}  Re8 {[%clk 1:27:09]} 9. O-O-O {[%clk 1:33:37]}  Nd7 {[%clk 1:27:23]}
10. h4 {[%clk 1:30:30]}  h6 {[%clk 1:25:11]} 11. Bc4 {[%clk 1:23:10]}  Nb6 {[%clk 0:46:11]} 12. Bd3 {[%clk 1:19:54]}  Bf8 {[%clk 0:46:02]}
13. Rdg1 {[%clk 1:17:32]}  Bg4 {[%clk 0:38:32]} 14. Nh2 {[%clk 1:07:42]}  Be6 {[%clk 0:38:28]} 15. g4 {[%clk 1:08:04]}  Qd7 {[%clk 0:34:59]}
16. g5 {[%clk 0:59:29]}  h5 {[%clk 0:24:41]} 17. g6 {[%clk 0:58:01]}  Bf5 {[%clk 0:15:17]} 18. Rg5 {[%clk 0:37:40]}  fxg6 {[%clk 0:14:32]}
19. Bxf5 {[%clk 0:37:05]}  gxf5 {[%clk 0:14:47]} 20. Rhg1 {[%clk 0:36:58]}  Re4 {[%clk 0:11:39]} 21. b3 {[%clk 0:34:26]}  Rae8 {[%clk 0:11:09]}
22. Nf3 {[%clk 0:34:44]}  Re2 {[%clk 0:10:11]} 23. Qd3 {[%clk 0:32:09]}  Rxf2 {[%clk 0:08:44]} 24. Bg3 {[%clk 0:22:09]}  Rfe2 {[%clk 0:07:52]}
25. Nd4 {[%clk 0:22:26]}  R2e3 {[%clk 0:06:13]} 26. Qd1 {[%clk 0:22:21]}  Nd5 {[%clk 0:00:44]} 27. Nxf5 {[%clk 0:21:56]}  Nxc3 {[%clk 0:00:39]}
28. Qxh5 {[%clk 0:19:14]}  Ne2+ {[%clk 0:00:37]} 29. Kb2 {[%clk 0:18:33]}  Nxg3 {[%clk 0:00:34]} 30. R1xg3 {[%clk 0:18:26]}  R3e6 {[%clk 0:00:33]}
31. Qg4 {[%clk 0:14:12]}  R8e7 {[%clk 0:00:44]} 32. h5 {[%clk 0:13:12]}  Re4 {[%clk 0:01:01]} 33. Qf3 {[%clk 0:12:06]}  Qe6 {[%clk 0:00:48]}
34. Nxe7+ {[%clk 0:11:34]}  Qxe7 {[%clk 0:00:34]} 35. h6 {[%clk 0:11:50]}  d5 {[%clk 0:00:37]} 36. Rxg7+ {[%clk 0:11:13]}  Bxg7+ {[%clk 0:00:46]}
37. Rxg7+ {[%clk 0:11:39]}  Qxg7+ {[%clk 0:01:09]} 38. hxg7 {[%clk 0:12:05]}  Kxg7 {[%clk 0:01:31]} 39. Qg3+ {[%clk 0:12:28]} 1-0

[Event "7th Paul Keres Memorial Festival 2026 Classic A"]
[Site "ESTONIA Resort Hotel & Spa conference center, EE"]
[Date "2026.07.31"]
[Round "8"]
[White "Ternault, Mathieu"]
[Black "Povilaitis, Tomas"]
[Result "0-1"]
[Board "8"]
[TimeControl "5400+30"]
[WhiteFideId "20641532"]
[BlackFideId "12811700"]
[WhiteElo "2281"]
[BlackElo "2150"]
[WhiteTitle "FM"]
[WhiteClock "0:01:07"]
[BlackClock "0:02:13"]
[Variant "Standard"]
[EndDate "2026.07.31"]
[EndTime "16:59:26"]

1. d4 {[%clk 1:30:46]}  d5 {[%clk 1:30:52]} 2. c4 {[%clk 1:30:24]}  c6 {[%clk 1:31:16]} 3. cxd5 {[%clk 1:30:43]}  cxd5 {[%clk 1:31:39]}
4. Bg5 {[%clk 1:30:50]}  h6 {[%clk 1:31:21]} 5. Bh4 {[%clk 1:31:13]}  Qb6 {[%clk 1:31:45]} 6. Nc3 {[%clk 1:31:11]}  e6 {[%clk 1:27:25]}
7. Qd2 {[%clk 1:30:39]}  Nc6 {[%clk 1:23:22]} 8. e3 {[%clk 1:30:34]}  Bd7 {[%clk 1:23:39]} 9. Rc1 {[%clk 1:28:46]}  Nge7 {[%clk 1:16:56]}
10. Bd3 {[%clk 1:23:21]}  Nc8 {[%clk 1:10:35]} 11. Nf3 {[%clk 1:16:58]}  Bd6 {[%clk 1:07:14]} 12. O-O {[%clk 1:07:48]}  O-O {[%clk 0:56:06]}
13. Kh1 {[%clk 0:54:34]}  f5 {[%clk 0:41:47]} 14. Bg3 {[%clk 0:44:24]}  Bxg3 {[%clk 0:39:20]} 15. fxg3 {[%clk 0:43:40]}  Nd6 {[%clk 0:36:43]}
16. Qe2 {[%clk 0:43:19]}  Nb4 {[%clk 0:33:43]} 17. Ne5 {[%clk 0:30:36]}  Nxd3 {[%clk 0:31:32]} 18. Qxd3 {[%clk 0:29:24]}  Bb5 {[%clk 0:31:20]}
19. Nxb5 {[%clk 0:29:40]}  Qxb5 {[%clk 0:31:45]} 20. Qxb5 {[%clk 0:27:38]}  Nxb5 {[%clk 0:32:13]} 21. Nd3 {[%clk 0:27:41]}  Rfe8 {[%clk 0:26:19]}
22. Rc5 {[%clk 0:18:58]}  Nd6 {[%clk 0:25:25]} 23. Rfc1 {[%clk 0:17:31]}  b6 {[%clk 0:21:07]} 24. Rc6 {[%clk 0:16:38]}  Nc4 {[%clk 0:20:52]}
25. b3 {[%clk 0:10:41]}  Nxe3 {[%clk 0:21:16]} 26. Rc7 {[%clk 0:09:33]}  Ng4 {[%clk 0:20:47]} 27. R1c6 {[%clk 0:02:29]}  Nf6 {[%clk 0:17:41]}
28. Nf4 {[%clk 0:04:21]}  e5 {[%clk 0:15:21]} 29. Ne6 {[%clk 0:02:15]}  exd4 {[%clk 0:15:45]} 30. Rxg7+ {[%clk 0:02:34]}  Kh8 {[%clk 0:16:14]}
31. Rg6 {[%clk 0:02:10]}  Rac8 {[%clk 0:05:38]} 32. Rxh6+ {[%clk 0:00:55]}  Kg8 {[%clk 0:06:08]} 33. Rg6+ {[%clk 0:01:07]}  Kh7 {[%clk 0:04:37]}
34. Nf8+ {[%clk 0:00:34]}  Kh8 {[%clk 0:03:56]} 35. Rh6+ {[%clk 0:00:53]}  Kg7 {[%clk 0:01:56]} 36. Rg6+ {[%clk 0:01:09]}  Kh8 {[%clk 0:02:21]}
37. Rh6+ {[%clk 0:01:37]}  Nh7 {[%clk 0:01:22]} 38. Rxh7+ {[%clk 0:01:28]}  Kg8 {[%clk 0:01:51]} 39. Rg6+ {[%clk 0:00:36]}  Kxf8 {[%clk 0:02:20]}
40. Kg1 {[%clk 0:00:34]}  d3 {[%clk 0:01:21]} 41. Kf2 {[%clk 0:00:35]}  Rc2+ {[%clk 0:01:36]} 42. Kf3 {[%clk 0:00:37]}  d2 {[%clk 0:01:59]}
43. Kf4 {[%clk 0:00:43]}  d1=Q {[%clk 0:01:59]} 44. Kg5 {[%clk 0:01:08]}  Qc1+ {[%clk 0:02:04]} 45. Kh5 {[%clk 0:01:22]}  Rc6 {[%clk 0:01:52]}
46. Rh8+ {[%clk 0:01:07]}  Ke7 {[%clk 0:02:13]} 0-1

[Event "7th Paul Keres Memorial Festival 2026 Classic A"]
[Site "ESTONIA Resort Hotel & Spa conference center, EE"]
[Date "2026.07.31"]
[Round "8"]
[White "Fecker, Noah"]
[Black "Rajandu, Aaron"]
[Result "1-0"]
[Board "9"]
[TimeControl "5400+30"]
[WhiteFideId "1334263"]
[BlackFideId "4514734"]
[WhiteElo "2371"]
[BlackElo "1953"]
[WhiteTitle "FM"]
[WhiteClock "0:06:11"]
[BlackClock "0:08:24"]
[Variant "Standard"]
[EndDate "2026.07.31"]
[EndTime "16:46:08"]

1. e4 {[%clk 1:30:50]}  c6 {[%clk 1:30:36]} 2. d4 {[%clk 1:31:19]}  d5 {[%clk 1:31:18]} 3. e5 {[%clk 1:31:47]}  c5 {[%clk 1:31:15]}
4. c3 {[%clk 1:32:12]}  Nc6 {[%clk 1:30:47]} 5. Bb5 {[%clk 1:32:14]}  Qb6 {[%clk 1:28:47]} 6. Ba4 {[%clk 1:32:21]}  cxd4 {[%clk 1:21:16]}
7. cxd4 {[%clk 1:31:48]}  Bf5 {[%clk 1:21:17]} 8. Nc3 {[%clk 1:27:16]}  e6 {[%clk 1:21:32]} 9. Nge2 {[%clk 1:26:48]}  Bg4 {[%clk 1:13:45]}
10. h3 {[%clk 1:12:55]}  Bxe2 {[%clk 1:07:07]} 11. Nxe2 {[%clk 1:11:35]}  Nge7 {[%clk 1:07:17]} 12. Bc2 {[%clk 1:04:52]}  Nf5 {[%clk 1:01:29]}
13. Bxf5 {[%clk 1:03:30]}  exf5 {[%clk 1:01:52]} 14. O-O {[%clk 1:03:15]}  Nd8 {[%clk 0:58:42]} 15. Nc3 {[%clk 0:51:00]}  Qc6 {[%clk 0:55:12]}
16. Qf3 {[%clk 0:49:21]}  Ne6 {[%clk 0:54:41]} 17. Rd1 {[%clk 0:46:56]}  g6 {[%clk 0:51:04]} 18. Be3 {[%clk 0:35:25]}  Rd8 {[%clk 0:49:50]}
19. Rac1 {[%clk 0:35:41]}  Qd7 {[%clk 0:46:38]} 20. Rc2 {[%clk 0:34:43]}  h5 {[%clk 0:39:38]} 21. Ne2 {[%clk 0:32:17]}  Be7 {[%clk 0:36:19]}
22. Rdc1 {[%clk 0:29:19]}  O-O {[%clk 0:35:05]} 23. a3 {[%clk 0:25:42]}  a6 {[%clk 0:30:37]} 24. Rc3 {[%clk 0:23:54]}  Kg7 {[%clk 0:29:44]}
25. Nf4 {[%clk 0:20:16]}  Nxf4 {[%clk 0:23:52]} 26. Bxf4 {[%clk 0:18:06]}  Qe6 {[%clk 0:23:57]} 27. Qe3 {[%clk 0:16:02]}  Rfe8 {[%clk 0:23:07]}
28. Bg5 {[%clk 0:14:42]}  Bxg5 {[%clk 0:20:01]} 29. Qxg5 {[%clk 0:14:59]}  Rd7 {[%clk 0:20:22]} 30. Qd2 {[%clk 0:13:22]}  Qb6 {[%clk 0:19:48]}
31. Rc5 {[%clk 0:13:10]}  Ree7 {[%clk 0:17:35]} 32. b4 {[%clk 0:12:28]}  Qe6 {[%clk 0:16:47]} 33. R1c3 {[%clk 0:11:33]}  f6 {[%clk 0:12:54]}
34. f4 {[%clk 0:10:27]}  g5 {[%clk 0:11:34]} 35. h4 {[%clk 0:07:27]}  gxf4 {[%clk 0:10:38]} 36. Qxf4 {[%clk 0:07:02]}  fxe5 {[%clk 0:10:08]}
37. Rg3+ {[%clk 0:06:01]}  Kf8 {[%clk 0:08:51]} 38. dxe5 {[%clk 0:05:32]}  Rg7 {[%clk 0:08:19]} 39. Rc8+ {[%clk 0:05:14]}  Kf7 {[%clk 0:08:44]}
40. Rxg7+ {[%clk 0:05:30]}  Kxg7 {[%clk 0:09:02]} 41. Qg5+ {[%clk 0:05:48]}  Kh7 {[%clk 0:08:24]} 42. Qxh5+ {[%clk 0:06:11]} 1-0

[Event "7th Paul Keres Memorial Festival 2026 Classic A"]
[Site "ESTONIA Resort Hotel & Spa conference center, EE"]
[Date "2026.07.31"]
[Round "8"]
[White "Jakubowska, Anna"]
[Black "Krivonosov, Oleg"]
[Result "0-1"]
[Board "10"]
[TimeControl "5400+30"]
[WhiteFideId "1121952"]
[BlackFideId "11600349"]
[WhiteElo "2088"]
[BlackElo "2290"]
[WhiteTitle "WIM"]
[BlackTitle "IM"]
[WhiteClock "0:10:58"]
[BlackClock "0:33:57"]
[Variant "Standard"]
[EndDate "2026.07.31"]
[EndTime "16:11:17"]

1. f4 {[%clk 1:30:56]}  d5 {[%clk 1:30:48]} 2. Nf3 {[%clk 1:31:11]}  g6 {[%clk 1:31:05]} 3. g3 {[%clk 1:31:32]}  Bg7 {[%clk 1:31:29]}
4. Bg2 {[%clk 1:31:47]}  Nf6 {[%clk 1:31:45]} 5. d3 {[%clk 1:31:50]}  b6 {[%clk 1:30:50]} 6. O-O {[%clk 1:25:13]}  Bb7 {[%clk 1:30:50]}
7. Qe1 {[%clk 1:17:04]}  d4 {[%clk 1:29:42]} 8. e4 {[%clk 1:12:42]}  dxe3 {[%clk 1:29:47]} 9. Qxe3 {[%clk 1:13:04]}  O-O {[%clk 1:26:48]}
10. Nc3 {[%clk 1:10:42]}  c5 {[%clk 1:26:15]} 11. Qe2 {[%clk 1:02:16]}  Nc6 {[%clk 1:24:55]} 12. h3 {[%clk 1:00:03]}  e6 {[%clk 1:22:19]}
13. Be3 {[%clk 0:58:16]}  Nb4 {[%clk 1:17:47]} 14. Ne5 {[%clk 0:52:29]}  Nfd5 {[%clk 1:13:34]} 15. Nxd5 {[%clk 0:48:49]}  Nxd5 {[%clk 1:13:03]}
16. Bd2 {[%clk 0:48:13]}  Qc7 {[%clk 1:12:55]} 17. Rae1 {[%clk 0:46:09]}  Rad8 {[%clk 1:11:29]} 18. Kh2 {[%clk 0:38:10]}  Ne7 {[%clk 1:09:06]}
19. b4 {[%clk 0:33:13]}  Nf5 {[%clk 1:06:33]} 20. Bxb7 {[%clk 0:28:44]}  Qxb7 {[%clk 1:04:44]} 21. bxc5 {[%clk 0:29:09]}  bxc5 {[%clk 1:02:32]}
22. Qf2 {[%clk 0:26:19]}  Qd5 {[%clk 0:59:59]} 23. Nc4 {[%clk 0:20:37]}  Nd6 {[%clk 0:58:26]} 24. Ne5 {[%clk 0:19:21]}  Nf5 {[%clk 0:57:22]}
25. Nc4 {[%clk 0:19:43]}  Rb8 {[%clk 0:55:46]} 26. Rb1 {[%clk 0:18:17]}  Rxb1 {[%clk 0:52:09]} 27. Rxb1 {[%clk 0:18:43]}  Nd4 {[%clk 0:52:27]}
28. g4 {[%clk 0:13:30]}  Nxc2 {[%clk 0:47:54]} 29. Rb3 {[%clk 0:12:56]}  Nd4 {[%clk 0:47:38]} 30. Ra3 {[%clk 0:13:04]}  h5 {[%clk 0:43:05]}
31. Be3 {[%clk 0:12:13]}  Nf3+ {[%clk 0:42:40]} 32. Kg3 {[%clk 0:11:08]}  h4+ {[%clk 0:42:03]} 33. Kg2 {[%clk 0:11:34]}  Ne1+ {[%clk 0:40:04]}
34. Kh2 {[%clk 0:10:51]}  Nxd3 {[%clk 0:39:44]} 35. Qe2 {[%clk 0:11:01]}  Rd8 {[%clk 0:38:15]} 36. Nd2 {[%clk 0:10:43]}  c4 {[%clk 0:38:12]}
37. Rxa7 {[%clk 0:10:35]}  c3 {[%clk 0:38:08]} 38. Nf3 {[%clk 0:10:58]}  Rb8 {[%clk 0:33:57]} 0-1

[Event "7th Paul Keres Memorial Festival 2026 Classic A"]
[Site "ESTONIA Resort Hotel & Spa conference center, EE"]
[Date "2026.08.01"]
[Round "9"]
[White "Zeng, Chongsheng"]
[Black "Keinanen, Toivo"]
[Result "1-0"]
[Board "1"]
[TimeControl "5400+30"]
[WhiteFideId "8603847"]
[BlackFideId "509825"]
[WhiteElo "2565"]
[BlackElo "2495"]
[WhiteTitle "GM"]
[BlackTitle "IM"]
[WhiteClock "0:13:39"]
[BlackClock "0:02:02"]
[Variant "Standard"]
[EndDate "2026.08.01"]
[EndTime "10:55:13"]

1. e4 {[%clk 1:27:17]}  e6 {[%clk 1:30:58]} 2. d4 {[%clk 1:27:15]}  d5 {[%clk 1:31:25]} 3. Nc3 {[%clk 1:27:30]}  Nf6 {[%clk 1:31:16]}
4. e5 {[%clk 1:27:36]}  Nfd7 {[%clk 1:31:42]} 5. f4 {[%clk 1:27:57]}  c5 {[%clk 1:31:02]} 6. Nf3 {[%clk 1:28:24]}  Nc6 {[%clk 1:27:40]}
7. Be3 {[%clk 1:28:40]}  Qb6 {[%clk 1:27:34]} 8. Na4 {[%clk 1:27:04]}  Qa5+ {[%clk 1:28:02]} 9. c3 {[%clk 1:26:52]}  b6 {[%clk 1:28:28]}
10. Bd2 {[%clk 1:22:06]}  c4 {[%clk 1:28:51]} 11. b4 {[%clk 1:17:27]}  Nxb4 {[%clk 1:29:20]} 12. cxb4 {[%clk 1:15:58]}  Bxb4 {[%clk 1:29:48]}
13. Qc2 {[%clk 1:11:04]}  Bxd2+ {[%clk 1:30:08]} 14. Nxd2 {[%clk 1:11:31]}  b5 {[%clk 1:30:10]} 15. Nc3 {[%clk 1:09:27]}  b4 {[%clk 1:30:39]}
16. Nce4 {[%clk 0:55:30]}  dxe4 {[%clk 1:31:00]} 17. Nxc4 {[%clk 0:53:06]}  b3+ {[%clk 1:31:29]} 18. Qd2 {[%clk 0:51:01]}  Qxd2+ {[%clk 1:31:09]}
19. Kxd2 {[%clk 0:51:01]}  b2 {[%clk 1:23:43]} 20. Nd6+ {[%clk 0:49:05]}  Ke7 {[%clk 1:23:08]} 21. Rb1 {[%clk 0:49:29]}  f5 {[%clk 1:10:37]}
22. Rxb2 {[%clk 0:49:00]}  Nb6 {[%clk 1:10:44]} 23. Bb5 {[%clk 0:44:48]}  Rd8 {[%clk 1:05:44]} 24. Rc1 {[%clk 0:41:50]}  Bd7 {[%clk 1:04:16]}
25. Rc7 {[%clk 0:36:36]}  Nd5 {[%clk 0:43:49]} 26. Rb7 {[%clk 0:35:36]}  e3+ {[%clk 0:38:54]} 27. Kd3 {[%clk 0:33:04]}  Rab8 {[%clk 0:24:55]}
28. Bc6 {[%clk 0:31:21]}  Rxb7 {[%clk 0:24:41]} 29. Rxb7 {[%clk 0:31:34]}  Nb4+ {[%clk 0:24:53]} 30. Rxb4 {[%clk 0:32:01]}  Bxc6 {[%clk 0:25:21]}
31. g3 {[%clk 0:32:00]}  Rg8 {[%clk 0:20:19]} 32. Kxe3 {[%clk 0:29:14]}  g5 {[%clk 0:20:48]} 33. fxg5 {[%clk 0:29:13]}  Rxg5 {[%clk 0:21:14]}
34. Nc8+ {[%clk 0:28:57]}  Kd7 {[%clk 0:19:42]} 35. Nxa7 {[%clk 0:29:24]}  Bd5 {[%clk 0:20:11]} 36. Nb5 {[%clk 0:28:16]}  h5 {[%clk 0:16:37]}
37. Nc3 {[%clk 0:27:47]}  Bc6 {[%clk 0:17:03]} 38. d5 {[%clk 0:23:08]}  Bxd5 {[%clk 0:15:36]} 39. Nxd5 {[%clk 0:23:33]}  exd5 {[%clk 0:16:05]}
40. Kd4 {[%clk 0:22:41]}  Kc6 {[%clk 0:15:19]} 41. a4 {[%clk 0:15:18]}  h4 {[%clk 0:11:50]} 42. a5 {[%clk 0:15:29]}  hxg3 {[%clk 0:11:01]}
43. Rb6+ {[%clk 0:15:42]}  Kd7 {[%clk 0:07:09]} 44. hxg3 {[%clk 0:15:51]}  Rxg3 {[%clk 0:07:37]} 45. a6 {[%clk 0:12:56]}  Ke7 {[%clk 0:04:05]}
46. a7 {[%clk 0:11:44]}  Ra3 {[%clk 0:03:58]} 47. Rh6 {[%clk 0:12:05]}  Ra4+ {[%clk 0:02:16]} 48. Kxd5 {[%clk 0:12:00]}  Ra5+ {[%clk 0:02:01]}
49. Kd4 {[%clk 0:12:23]}  Ra4+ {[%clk 0:01:21]} 50. Ke3 {[%clk 0:12:32]}  f4+ {[%clk 0:01:24]} 51. Kf3 {[%clk 0:12:58]}  Ra3+ {[%clk 0:01:37]}
52. Kxf4 {[%clk 0:13:21]}  Ra4+ {[%clk 0:02:02]} 53. Kf5 {[%clk 0:13:39]} 1-0

[Event "7th Paul Keres Memorial Festival 2026 Classic A"]
[Site "ESTONIA Resort Hotel & Spa conference center, EE"]
[Date "2026.08.01"]
[Round "9"]
[White "Kazakouski, Valery"]
[Black "Kreken, Eivind Grunt"]
[Result "1/2-1/2"]
[Board "2"]
[TimeControl "5400+30"]
[WhiteFideId "13507443"]
[BlackFideId "1532359"]
[WhiteElo "2594"]
[BlackElo "2335"]
[WhiteTitle "GM"]
[BlackTitle "FM"]
[WhiteClock "0:29:20"]
[BlackClock "0:01:55"]
[Variant "Standard"]
[EndDate "2026.08.01"]
[EndTime "10:35:29"]

1. d4 {[%clk 1:30:33]}  Nf6 {[%clk 1:30:37]} 2. c4 {[%clk 1:30:56]}  e5 {[%clk 1:30:38]} 3. dxe5 {[%clk 1:31:11]}  Ng4 {[%clk 1:31:00]}
4. Nf3 {[%clk 1:29:46]}  Bc5 {[%clk 1:30:48]} 5. e3 {[%clk 1:30:09]}  Nc6 {[%clk 1:31:00]} 6. Nc3 {[%clk 1:30:24]}  O-O {[%clk 1:30:34]}
7. Be2 {[%clk 1:29:31]}  Ncxe5 {[%clk 1:28:53]} 8. Nxe5 {[%clk 1:29:53]}  Nxe5 {[%clk 1:29:19]} 9. O-O {[%clk 1:30:11]}  Re8 {[%clk 1:27:40]}
10. Kh1 {[%clk 1:28:32]}  d6 {[%clk 1:20:48]} 11. Na4 {[%clk 1:26:50]}  Qh4 {[%clk 1:05:56]} 12. f3 {[%clk 1:24:24]}  Bd7 {[%clk 0:58:48]}
13. Nxc5 {[%clk 1:20:46]}  dxc5 {[%clk 0:58:53]} 14. Qe1 {[%clk 1:19:36]}  Qxe1 {[%clk 0:54:28]} 15. Rxe1 {[%clk 1:20:01]}  Rad8 {[%clk 0:52:59]}
16. b3 {[%clk 1:17:12]}  Bc8 {[%clk 0:46:00]} 17. Kg1 {[%clk 1:05:46]}  Nd3 {[%clk 0:45:50]} 18. Rd1 {[%clk 1:05:45]}  Nxc1 {[%clk 0:45:25]}
19. Raxc1 {[%clk 1:06:07]}  Kf8 {[%clk 0:36:55]} 20. Kf2 {[%clk 1:06:27]}  Ke7 {[%clk 0:36:29]} 21. e4 {[%clk 1:04:57]}  Rd4 {[%clk 0:30:49]}
22. Ke3 {[%clk 1:05:18]}  Red8 {[%clk 0:30:46]} 23. h4 {[%clk 1:05:39]}  h6 {[%clk 0:26:53]} 24. g3 {[%clk 1:05:59]}  g5 {[%clk 0:26:33]}
25. hxg5 {[%clk 1:05:31]}  hxg5 {[%clk 0:26:56]} 26. Rh1 {[%clk 1:05:02]}  Rd2 {[%clk 0:26:10]} 27. Rcd1 {[%clk 1:03:58]}  Rxd1 {[%clk 0:23:33]}
28. Bxd1 {[%clk 1:04:19]}  b6 {[%clk 0:22:41]} 29. Bc2 {[%clk 1:04:33]}  Kf6 {[%clk 0:11:59]} 30. Rh7 {[%clk 1:01:15]}  Rg8 {[%clk 0:11:29]}
31. Rh6+ {[%clk 0:58:03]}  Ke7 {[%clk 0:11:22]} 32. e5 {[%clk 0:57:50]}  Bb7 {[%clk 0:09:50]} 33. Bf5 {[%clk 0:55:15]}  a6 {[%clk 0:04:21]}
34. Rh7 {[%clk 0:52:40]}  b5 {[%clk 0:03:03]} 35. Bg4 {[%clk 0:47:14]}  bxc4 {[%clk 0:02:41]} 36. bxc4 {[%clk 0:47:30]}  Bc8 {[%clk 0:02:23]}
37. Bxc8 {[%clk 0:47:31]}  Rxc8 {[%clk 0:02:52]} 38. f4 {[%clk 0:47:19]}  gxf4+ {[%clk 0:02:40]} 39. gxf4 {[%clk 0:47:41]}  Rg8 {[%clk 0:00:34]}
40. f5 {[%clk 0:47:55]}  Ke8 {[%clk 0:00:44]} 41. Ke4 {[%clk 0:43:33]}  c6 {[%clk 0:01:03]} 42. f6 {[%clk 0:39:53]}  Rg1 {[%clk 0:01:26]}
43. Rh8+ {[%clk 0:36:56]}  Kd7 {[%clk 0:01:56]} 44. Rh3 {[%clk 0:37:11]}  Ke6 {[%clk 0:01:57]} 45. Ra3 {[%clk 0:28:09]}  Rg4+ {[%clk 0:01:10]}
46. Kf3 {[%clk 0:28:32]}  Rxc4 {[%clk 0:01:34]} 47. Rxa6 {[%clk 0:28:57]}  Kxe5 {[%clk 0:01:55]} 48. Rxc6 {[%clk 0:29:20]} 1/2-1/2